Cogmind - Beta 16 @@@ ROGUE MODE // 2025.12.29 @ 23:05:50 Player: skilledspacepolice Result: Destroyed by FE-7LD(R) with Subdweller Laser Performance ------------- Evolutions (0) 0 Regions Visited (2) 400 Robots Destroyed (6) 30 Value Destroyed (241) 241 Prototype IDs (0) 0 Alien Tech Used (0) 0 Bonus (0) 0 TOTAL SCORE: 671 Bonus ------- None Cogmind --------- Core Integrity 0/250 Matter 286/300 Energy 34/100 System Corruption 0% Temperature Cool (6) Movement Rolling (110) Location -10/Subcaves Parts ------- > --- POWER (1) -------- Subdweller Power Source > --- PROPULSION (2) --- Subdweller Monowheel Subdweller Monowheel > --- UTILITY (2) ------ Subdweller Optics > --- WEAPON (2) ------- Subdweller Beam Cannon Subdweller Machine Gun > --- INVENTORY (5) ---- Subdweller Optics Subdweller Optics Peak State ------------ > --- POWER ------------ Subdweller Power Source > --- PROPULSION ------- Subdweller Monowheel Subdweller Monowheel > --- UTILITY ---------- Subdweller Optics > --- WEAPON ----------- Subdweller Beam Cannon Subdweller Machine Gun > --- INVENTORY -------- Subdweller Optics Subdweller Optics [Rating: 12] Favorites ----------- Power Ion Engine Engine Ion Engine Propulsion Light Treads Treads Light Treads Wheel Subdweller Monowheel Utility Subdweller Optics Device Subdweller Optics Weapon EM Pulse Gun Energy Gun EM Pulse Gun Energy Cannon Subdweller Beam Cannon Ballistic Gun Light Assault Rifle Build | -11 -10 -10 ------- Run | Yrd Mat Sub Slots Evolved . | . . . Power . | . . . Propulsion . | . . . Utility . | . . . Weapon . | . . . Parts Attached 12 | 5 . 7 Power 3 | 1 . 2 Engine 3 | 1 . 2 Core . | . . . Reactor . | . . . Propulsion 4 | 2 . 2 Treads 2 | 2 . . Leg . | . . . Wheel 2 | . . 2 Hover . | . . . Flight . | . . . Utility 1 | . . 1 Device 1 | . . 1 Storage . | . . . Processor . | . . . Hackware . | . . . Protection . | . . . Artifact . | . . . Weapon 4 | 2 . 2 Energy Gun 1 | 1 . . Energy Cannon 1 | . . 1 Ballistic Gun 2 | 1 . 1 Ballistic Cannon . | . . . Launcher . | . . . Special Weapon . | . . . Impact Weapon . | . . . Slashing Weapon . | . . . Piercing Weapon . | . . . Special Melee Weapon . | . . . Unidentified Prototypes . | . . . Parts Lost 1 | . . 1 Power . | . . . Propulsion 1 | . . 1 Utility . | . . . Weapon . | . . . Highest Loss Streak 1 | . . 1 To Critical Strikes . | . . . Average Backups 1 | . . 2 Power . | . . . Propulsion . | . . . Utility . | . . 1 Weapon . | . . . Tool/Special . | . . . Unused Backups 2 | . . 2 Power . | . . . Propulsion . | . . . Utility 2 | . . 2 Weapon . | . . . Tool/Special . | . . . Average Slot Usage (%) 69 | . 71 68 Engine 14 | . 14 14 Treads 21 | . 28 18 Wheel 4 | . . 7 Device 5 | . . 9 Energy Gun 8 | . 14 4 Energy Cannon 5 | . . 9 Ballistic Gun 8 | . 14 4 Peak Build Rating 12 | 5 5 12 Average Rating 6 | 3 5 7 On Entrance 3 | . 5 5 Avg Prop Armor Cover (%) 8 | . . 8 Naked Turns . | . . . Heaviest Build 15 | 8 8 15 Greatest Support 40 | 40 40 40 Greatest Overweight (x) . | . . . Average Overweight (x) . | . . . Largest Inventory Capacity 5 | 5 5 5 Average Capacity 5 | 5 5 5 Most Carried 5 | 5 . 5 Average Carried 1 | . . 2 Final Capacity 5 | 5 5 5 Final Carried 2 | . . 2 Class Distribution -------------------- 83% | Mutant 16% | Scavenger-Mutant Dominant Class ---------------- Mutant | -10/Materials Mutant | -10/Subcaves Resources | -11 -10 -10 ----------- Run | Yrd Mat Sub Matter Collected 323 | 198 . 125 Remotely . | . . . Salvage Created 293 | . . 293 Parts 17 | . . 17 Haulers Intercepted . | . . . Recyclers Shooed . | . . . Parts Field Recycled . | . . . Retrieved Matter . | . . . Parts Self-Destructed 8 | . . 8 Prevented . | . . . Parts Restored . | . . . Kills | -11 -10 -10 ------- Run | Yrd Mat Sub Combat Hostiles Destroyed 6 | . . 6 Guns 4 | . . 4 Cannons 2 | . . 2 Classes Destroyed 2 | . . 2 Grunt 2 | . . 2 Subdweller 4 | . . 4 Best Kill Streak 4 | . . 4 Combat Bots Only 4 | . . 4 Max Kills in Single Turn 1 | . . 1 Gunslinging . | . . . Exploded . | . . . Melee . | . . . Uniques/NPCs Destroyed . | . . . Combat | -11 -10 -10 -------- Run | Yrd Mat Sub Hostile Shots Fired 31 | . . 31 Missed 9 | . . 9 Hits 22 | . . 22 Projectile 22 | . . 22 Critical Strikes 1 | . . 1 Damage Taken 607 | . . 607 Core 265 | . . 265 Absorbed by Shields . | . . . Core Remaining (%) 100 | 100 . . Volleys Fired 28 | . . 28 Largest 2 | . . 2 Hottest 110 | . . 110 Shots Fired 43 | . . 43 Gun 28 | . . 28 Cannon 15 | . . 15 Launcher . | . . . Special . | . . . Kinetic 15 | . . 15 Thermal 15 | . . 15 Explosive . | . . . Electromagnetic 13 | . . 13 Robot Hit Streak 12 | . . 12 Robot Miss Streak 2 | . . 2 Penetration Max . | . . . Secondary Targets 1 | . . 1 Max Gunslinging Chain 1 | . . 1 Shots Hit Robots 28 | . . 28 Core Hits 12 | . . 12 Critical Kills . | . . . Critical Parts Destroyed . | . . . Critical Strikes . | . . . Melee Attacks . | . . . Impact . | . . . Slashing . | . . . Piercing . | . . . Sneak Attacks . | . . . Combat Hostiles . | . . . Follow-up Attacks . | . . . Damage Inflicted 405 | . . 405 Guns 234 | . . 234 Cannons 171 | . . 171 Explosions . | . . . Melee . | . . . Ramming . | . . . Kinetic 113 | . . 113 Thermal 171 | . . 171 Explosive . | . . . Electromagnetic 121 | . . 121 Impact . | . . . Slashing . | . . . Piercing . | . . . Highest Corruption . | . . . Average Corruption . | . . . Corruption Purged . | . . . Corruption Blocked . | . . . Overload Shots . | . . . Overflow Damage . | . . . Projectiles . | . . . Explosions . | . . . Melee . | . . . Knockbacks . | . . . Impact . | . . . Kinetic . | . . . Secondary . | . . . Self-Inflicted Damage . | . . . Shots . | . . . Rammed . | . . . Targets Rammed . | . . . Kicked . | . . . Crushed . | . . . Highest Temperature 279 | . . 279 Average Temperature 78 | . . 78 Received Heat Transfer 439 | . . 439 Siege Activations . | . . . Martial Activations . | . . . Shielding Activations . | . . . Robots Disrupted . | . . . Combat Hostiles . | . . . Robots Corrupted . | . . . Combat Hostiles . | . . . Parts Fried . | . . . Impact Corruptions . | . . . Robots Melted . | . . . Combat Hostiles . | . . . Parts Melted 1 | . . 1 Heat Transferred 222 | . . 222 Parts Sabotaged . | . . . Parts Stolen . | . . . Parts Stripped . | . . . Power Chain Reactions . | . . . Alert | -11 -10 -10 ------- Run | Yrd Mat Sub Maximum Alert Level . | . . . Low Security (%) 100 | 100 100 . Level 1 . | . . . Level 2 . | . . . Level 3 . | . . . Level 4 . | . . . Level 5 . | . . . High Security . | . . . Max Security . | . . . Peak Influence 14 | . 14 . Initial . | . . . Average . | . . . Influence Increases 64 | . 14 50 Destroy 0b10 Robot/C 40 | . . 40 Destroy Leader 10 | . . 10 Successful Hack 14 | . 14 . Influence Decreases 64 | . 14 50 Time Decay 64 | . 14 50 Squads Dispatched 1 | . 1 . Investigation 1 | . 1 . Extermination . | . . . Reinforcement . | . . . Assault . | . . . Garrison . | . . . Intercept . | . . . Searches Triggered . | . . . Construction Impeded . | . . . Haulers Reinforced . | . . . Active Scanning Responses . | . . . Cargo Convoy Interrupts . | . . . Stealth | -11 -10 -10 --------- Run | Yrd Mat Sub Distress Signals . | . . . Communications Jammed . | . . . Distress Signals . | . . . Times Spotted 8 | . 1 7 Peak Tracking Total 4 | . 1 4 Tactical Retreats . | . . . Traps | -11 -10 -10 ------- Run | Yrd Mat Sub Traps Triggered 3 | . . 3 Indirectly . | . . . Trap Hack Attempts . | . . . Triggered . | . . . Disarmed . | . . . Reprogrammed . | . . . Reused . | . . . Traps Extracted . | . . . Installed . | . . . Triggered . | . . . Machines | -11 -10 -10 ---------- Run | Yrd Mat Sub Machines Disabled . | . . . Max in Single Turn . | . . . Machines Repaired . | . . . Machines Dismantled . | . . . Machines Sabotaged . | . . . Overloaded Fab Kills . | . . . Hacking | -11 -10 -10 --------- Run | Yrd Mat Sub Machines Accessed 2 | . 2 . Terminals 2 | . 2 . Fabricators . | . . . Repair Stations . | . . . Recycling Units . | . . . Scanalyzers . | . . . Garrison Access . | . . . Total Hacks 3 | . 3 . Successful 1 | . 1 . Failed 2 | . 2 . Catastrophic 1 | . 1 . Database Lockouts . | . . . Manual . | . . . Terminals 3 | . 3 . Fabricators . | . . . Repair Stations . | . . . Recycling Units . | . . . Scanalyzers . | . . . Garrison Access . | . . . Terminal Hacks 1 | . 1 . Zone Layout 1 | . 1 . Fabricator Hacks . | . . . Repair Station Hacks . | . . . Recycling Unit Hacks . | . . . Scanalyzer . | . . . Garrison Access Hacks . | . . . Unauthorized Hacks . | . . . Terminals . | . . . Fabricators . | . . . Repair Stations . | . . . Recycling Units . | . . . Scanalyzers . | . . . Garrison Access . | . . . Data Cores Recovered . | . . . Used . | . . . Hacking Detections 1 | . 1 . Full Trace Events 1 | . 1 . Feedback Events . | . . . Feedback Blocked . | . . . Robot Schematics Acquired . | . . . Robots Built . | . . . Authchips . | . . . Time . | . . . Total Robot Build Rating . | . . . Part Schematics Acquired . | . . . Parts Built . | . . . Authchips . | . . . Time . | . . . Total Part Build Rating . | . . . Part Studies Acquired . | . . . Parts Repaired . | . . . Time . | . . . Parts Recycled . | . . . Recycled Matter . | . . . Retrieved Matter . | . . . Retrieved Components . | . . . Parts Scanalyzed . | . . . Part Schematics Acquired . | . . . Parts Damaged . | . . . Bothacking | -11 -10 -10 ------------ Run | Yrd Mat Sub Used RIF Installer . | . . . Robots Hacked . | . . . Non-combat . | . . . Combat . | . . . Robot Hacks Applied . | . . . Relay Couplers Released . | . . . Fabnet Peak Effective % . | . . . Robots Rewired . | . . . Allies Hacked . | . . . Hacks Repelled . | . . . Allies | -11 -10 -10 -------- Run | Yrd Mat Sub Total Allies . | . . . Largest Group . | . . . Highest-Rated Group . | . . . Highest-Rated Ally . | . . . Total Orders . | . . . Ally Attacks . | . . . Total Damage . | . . . Kills . | . . . Allies Corrupted . | . . . Allies Melted . | . . . Intel | -11 -10 -10 ------- Run | Yrd Mat Sub Active Infowar (turns) 456 | . . 456 Optics 456 | . . 456 Robot Analysis Total . | . . . Derelict Logs Recovered 1 | . . 1 Drone Launches . | . . . Drone Recoveries . | . . . Exploration | -11 -10 -10 ------------- Run | Yrd Mat Sub Turns Passed 1145 | 57 391 697 Spaces Moved 566 | 46 92 428 Core 23 | 23 . . Treads 382 | 23 92 267 Legs . | . . . Wheels 161 | . . 161 Hover . | . . . Flight . | . . . Fastest Speed 50 | 50 160 110 Average Speed 141 | 105 160 141 Slowest Speed 160 | 160 160 160 Overloaded Moves . | . . . Propulsion Burnouts . | . . . Robots Hopped . | . . . Potential Cave-ins . | . . . Cave-ins Triggered . | . . . Exploration Rate (%) 22 | 3 25 39 Regions Visited 2 Branch Regions 1 Pre-discovered Areas . | . . . Known Exits Taken . | . . . Unknown Exits Taken 2 | 1 1 . Scrap Searched . | . . . Spaces Dug . | . . . Terrain Destroyed . | . . . Melee . | . . . Projectile . | . . . AOE . | . . . Terrain Rammed . | . . . Walls Destroyed . | . . . Machines Disabled . | . . . Actions | -11 -10 -10 --------- Run | Yrd Mat Sub Total 871 | 55 336 480 Wait 248 | . 245 3 Move 564 | 45 91 428 Hop . | . . . Pick Up 14 | 5 . 9 Fast Attach . | . . . Attach 12 | 5 . 7 Detach . | . . . Swap . | . . . Drop 5 | . . 5 Fire 28 | . . 28 Melee . | . . . Ram . | . . . Kick . | . . . Crush . | . . . Escape Stasis . | . . . Rewire . | . . . Trap . | . . . Miscellaneous . | . . . Route ------- -11/Scrapyard -10/Materials -10/Subcaves History --------- Turn | Location | Event 3 | -11/Scrapyard | Discovered new exit (range 16) 58 | -11/Scrapyard | Entered Materials 306 | -10/Materials | Build established: Mutant 444 | -10/Materials | Discovered new exit (range 5) 449 | -10/Materials | Entered Subcaves 489 | -10/Subcaves | A swath of the cavern ceiling suddenly collapsed 579 | -10/Subcaves | Learned 2 Materials zone layouts 637 | -10/Subcaves | Core integrity fell below 50% 868 | -10/Subcaves | Core integrity fell below 20% 1130 | -10/Subcaves | Shifting Twisted Machinery released Sub. Machine Gun 1146 | -10/Subcaves | Destroyed by FE-7LD(R) with Subdweller Laser Last Messages --------------- Triggered Piercing Trap. Spikes shoot up from the floor. Critical hit (Impale). Lgt. Treads destroyed. Dropped Broken Sub. Power Source. Triggered Piercing Trap. Spikes shoot up from the floor. Critical hit (Impale). Triggered Piercing Trap. Spikes shoot up from the floor. Critical hit (Impale). Dropped Lgt. Treads. Sub. Power Source shoots sparks and powers down. Sub. Monowheel shoots sparks and powers down. Acquired 15 matter. Sub. Machine Gun falls loose from the Twisted Machinery. FE-7LD(R) angrily emerges from the Twisted Machinery. Acquired Sub. Machine Gun. Map ----- +----------------------------------------------------+ | ?????????????????###???# ## ## ??# | | ???????????????????????## ## #### ?# | | ????????????????????????## # #?## ### | | ????????????????????????## ####?# | | ????????????????????????# ### ##? | | ????????????????????????# ### # ## ## | | ??????????????????????### #####?# | | ??????????????????????# ###### | | ??????????????????????# # | | ??????????????????????# ## | | ??????????????????????#### ## | | ?????????????????????????##### | | ?????????????????????????????## # | | ?????????????????????????###??# ### | | ??????????????????????#### #### #?? | | ??????????????????? ### " "#### #?? | | ???????????????#??? " """"" ### ## #?? | | ???????????????# ??? "" "" "" #? #?? | | ??????????????## ????## ## " ## ##? | | ??????????????# ???????# "" #? | | ???????????????# ??######% ##""|= #? | | ????????????????# ###""# # ###" *## #? | | ????????????????# " "" #?##"##?? ##? | | ????????????????## "###"" #?###???? ##?? | | ????????????????####""" "##?""" #?????????###??? | | ????????????????# @##?#"""" #?????????????? | | ????????????????## #??##"" #?????????????? | | ?????????????? & R #???#""" #????????????? | | ????????????# #$#< ??? "" ????????????? | | ????????????#??#?# ##??? "" ???????????? | | ???????????????? #?????? """ ???????????? | | ???????????????# #??????????"" ??????????? | | ???????????????## #?????????????" ?????????? | | ????????????????### ???????????????" ?????????? | | ?????????????????? ???????????????? ?????????? | | ?????????????????##??????????????????##????????? | | ???????????????????????????????????????????????? | | ???????????????????????????????????????????????? | | ???????????????????????????????????????????????? | | ???????????????????????????????????????????????? | | ???????????????????????????????????????????????? | | ???????????????????????????????????????????????? | | ???????????????????????????????????????????????? | | ???????????????????????????????????????????????? | | ???????????????????????????????????????????????? | | ???????????????????????????????????????????????? | | ???????????????????????????????????????????????? | | ???????????????????????????????????????????????? | | ???????????????????????????????????????????????? | | ???????????????????????????????????????????????? | +----------------------------------------------------+ Best States ------------- Heat Dissipation 25 Energy Generation 15 Energy Capacity 250 Matter Stores 300 Matter Capacity 300 Sight Range 21 Terrain Scan Density 10 Evasion (%) 50 Recoil Reduction 2 Item Schematics ----------------- None Robot Schematics ------------------ None Fabricated ------------ Nothing Repaired ---------- Nothing Studied --------- None Alien Tech Used ----------------- None Achievements -------------- None Challenges ------------ None Game ------ Seed ScrapShadeDisintegrator Manual? 0 Play Time 00:09:30 Cumulative 18.0 hours Start 2025.12.29 @ 22:57:43 End 2025.12.29 @ 23:05:50 Sessions 1 Manual Loads 0 Difficulty Rogue Special Mode None Game No. 24 Rogue 24 Adventurer 0 Explorer 0 Win Type - Total 0 Types 0/0/0/0/0/0/0/0/0/0 Lore% 27 Gallery% 18 Achievement% 14 Wizard Run 0 Options --------- Layout 1 ASCII 0 Keyboard 0 Movement Mouse Keybinds 0 Fullscreen 1 Font 24/Smallcaps Map View 50x35 Zoom Use 0% Tactical HUD 0 Map Filters NONE Filters NONE Steam 1 RUN: 8cc50e86-b5ab-4806-9e1e-5f94a28c0406